bitfinex/quotes_SOLUSD_20250818
["timestamp","ask_amount","ask_price","bid_price","bid_amount"]
[1755517739866,0.06,181.33,181.32,107.14152298]
[1755517740069,0.06,181.33,181.32,114.63793456]
[1755517740688,0.06,181.33,181.32,107.14152298]
[1755517741006,0.06,181.33,181.32,109.35152898]
[1755517744507,0.06,181.33,181.32,107.14152298]
[1755517746218,0.06,181.34,181.33,80.29999999]
[1755517746428,0.06,181.34,181.33,88.48641157]
[1755517746602,0.06,181.34,181.33,87.79641157]
[1755517746792,0.06,181.34,181.33,88.48641157]
[1755517747594,0.06,181.36,181.35,26.0]
[1755517747789,0.06,181.37,181.35,126.93641157]
[1755517747991,0.06,181.37,181.36,7.49641158]
[1755517748200,0.06,181.37,181.36,13.70030659]
[1755517749722,0.06,181.39,181.38,26.0]
[1755517749892,0.7,181.46,181.38,126.93641157]
[1755517750215,0.7,181.45,181.4,5.51267916]
[1755517750414,0.7,181.45,181.41,39.14]
[1755517750619,0.7,181.45,181.43,7.49641158]
[1755517750822,0.7,181.45,181.44,39.14]
[1755517751024,13.70766994,181.45,181.44,39.14]
[1755517751196,16.70773917,181.45,181.44,39.14]
[1755517751518,13.70766994,181.45,181.44,39.12]
[1755517752018,32.51395474,181.45,181.44,39.12]
[1755517752202,17.40773917,181.45,181.4,7.49641158]
[1755517752525,4.40006923,181.44,181.41,39.12]
[1755517752701,0.7,181.44,181.41,39.12]
[1755517753515,0.7,181.44,181.41,46.61641158]
[1755517754017,0.7,181.44,181.41,39.12]
[1755517755821,0.7,181.44,181.41,46.61641158]
[1755517756319,0.71,181.43,181.41,46.61641158]
[1755517756924,0.71,181.43,181.42,39.12]
[1755517758109,4.4156819,181.43,181.42,39.12]
[1755517758418,9.92744952,181.43,181.42,39.12]
[1755517758628,17.4238611,181.43,181.42,39.12]
[1755517758923,17.4238611,181.43,181.36,6.18366757]
[1755517758927,21.5409778,181.43,181.41,39.12]
[1755517759121,11.91209348,181.42,181.36,13.01007915]
[1755517759310,3.7056819,181.41,181.37,46.61641158]
[1755517759512,0.71,181.4,181.37,7.49641158]
[1755517759921,9.21808357,181.41,181.38,39.12]
[1755517760104,0.71,181.39,181.38,39.12]
[1755517761012,9.21808357,181.41,181.38,39.12]
[1755517761216,0.71,181.4,181.38,39.12]
[1755517763533,3.7056819,181.41,181.39,7.49641158]
[1755517763708,3.7056819,181.44,181.4,47.28641158]
[1755517763904,3.7056819,181.43,181.41,7.49641158]
[1755517764132,0.77,181.45,181.42,39.12]
[1755517764428,3.70665125,181.44,181.42,39.12]
[1755517764603,3.70665125,181.43,181.42,39.12]
[1755517765723,3.70665125,181.43,181.42,47.28641158]
[1755517766044,0.06,181.45,181.42,46.61641158]
[1755517766045,3.706411,181.44,181.42,46.61641158]
[1755517766215,0.06,181.45,181.42,46.61641158]
[1755517766411,3.70631144,181.44,181.42,39.12]
[1755517766628,3.70634878,181.43,181.42,39.12]
[1755517767344,9.9281164,181.43,181.42,39.12]
[1755517768138,17.42452798,181.43,181.42,39.12]
[1755517768510,15.10621557,181.42,181.36,54.29999999]
[1755517768706,5.51267916,181.4,181.37,39.12]
[1755517768942,3.70761566,181.39,181.37,39.12]
[1755517769117,4.41761566,181.39,181.37,39.12]
[1755517769920,0.71,181.39,181.37,39.12]
[1755517770239,3.70818563,181.39,181.37,39.79]
[1755517770423,3.70818563,181.4,181.37,39.12]
[1755517770625,3.70818563,181.39,181.37,39.12]
[1755517770939,3.70818563,181.4,181.38,0.67]
[1755517771236,5.51247493,181.41,181.39,39.12]
[1755517771439,3.70862272,181.4,181.39,39.12]
[1755517774452,3.70862272,181.4,181.39,39.79]
[1755517775224,3.70862272,181.4,181.37,0.03]
[1755517775440,3.70862272,181.39,181.38,39.12]
[1755517778278,3.71083684,181.39,181.38,39.12]
[1755517779138,3.71083684,181.39,181.38,39.79]
[1755517782868,3.71083684,181.39,181.38,47.28641158]
[1755517784147,15.10621557,181.42,181.38,47.28641158]
[1755517784350,3.71299891,181.41,181.39,7.49641158]
[1755517784549,3.71299891,181.4,181.39,8.16641158]
[1755517784770,3.71299891,181.4,181.39,47.28641158]
[1755517787583,3.71299891,181.4,181.39,39.12]
[1755517791685,24.33189364,181.4,181.39,39.12]
[1755517791883,15.10621557,181.39,181.37,0.03]
[1755517792093,3.71299891,181.38,181.37,39.15]
[1755517792256,9.89628593,181.38,181.37,0.03]
[1755517792954,25.00345143,181.38,181.37,0.03]
[1755517793193,29.13004539,181.38,181.37,0.03]
[1755517794270,7.8405428,181.38,181.37,0.74]
[1755517796997,3.71410409,181.38,181.37,0.74]
[1755517797690,20.67837165,181.42,181.37,7.52641158]
[1755517797875,7.84138198,181.41,181.38,46.61641158]
[1755517798078,7.84138198,181.4,181.38,46.61641158]
[1755517798284,15.16621557,181.42,181.39,0.71]
[1755517798474,7.84183697,181.41,181.39,0.71]
[1755517798674,7.84180607,181.4,181.39,0.71]
[1755517798984,3.71456312,181.4,181.39,0.71]
[1755517800188,7.84310121,181.4,181.39,0.71]
[1755517801097,7.84310121,181.4,181.38,39.12]
[1755517801288,3.71456312,181.39,181.38,47.32641158]
[1755517801986,3.71456312,181.39,181.38,0.71]
[1755517802203,4.38456312,181.39,181.38,39.1]
[1755517802401,8.51518559,181.39,181.38,39.1]
[1755517803075,7.84518559,181.39,181.38,39.1]
[1755517803273,7.84518559,181.39,181.38,39.81]
[1755517803486,7.84518559,181.39,181.38,47.30641158]
[1755517803687,3.71456312,181.39,181.38,47.30641158]
[1755517804011,3.71456312,181.39,181.38,52.8196986]
[1755517804172,0.06,181.42,181.38,52.8196986]
[1755517804371,7.84800499,181.41,181.4,7.49641158]
[1755517804589,3.71747425,181.41,181.4,47.30641158]
[1755517805395,0.06,181.42,181.4,47.30641158]
[1755517805690,0.06,181.42,181.41,8.20641158]
[1755517805898,3.77648155,181.42,181.41,8.20641158]
[1755517808194,0.06,181.42,181.41,8.20641158]
[1755517808571,0.06,181.41,181.39,0.03]
[1755517808794,16.00911692,181.4,181.39,0.03]
[1755517809102,31.11533249,181.4,181.39,0.03]
[1755517810177,36.62801165,181.4,181.39,0.03]
[1755517812774,32.50074054,181.4,181.39,0.03]
[1755517812977,36.6295047,181.4,181.39,0.03]
[1755517813502,36.62983531,181.4,181.39,0.03]
[1755517813681,36.62967661,181.4,181.39,0.03]
[1755517814401,41.27211266,181.4,181.39,0.03]
[1755517818985,26.0,181.38,181.37,0.03]
[1755517819217,41.34078188,181.38,181.37,0.03]
[1755517819407,42.00078188,181.38,181.37,0.03]
[1755517819826,47.5140689,181.38,181.37,0.03]
[1755517822014,43.38513283,181.38,181.37,0.03]
[1755517822206,47.51090051,181.38,181.37,0.03]
[1755517822731,47.51023982,181.38,181.37,0.03]
[1755517827522,46.85023982,181.38,181.37,0.03]
[1755517828803,20.85023982,181.38,181.37,0.03]
[1755517830029,20.85023982,181.38,181.37,0.75]
[1755517830641,20.85023982,181.38,181.37,0.03]
[1755517831253,21.51023982,181.38,181.37,0.03]
[1755517831460,56.46513283,181.38,181.37,0.03]
[1755517831756,60.58659573,181.38,181.37,0.03]
[1755517831934,60.58651074,181.38,181.37,0.03]
[1755517832930,80.33644643,181.38,181.37,0.03]
[1755517833348,26.0,181.36,181.35,0.03]
[1755517833529,95.51943929,181.36,181.35,0.03]
[1755517833937,96.17943929,181.36,181.35,0.03]
[1755517834132,101.6933343,181.36,181.35,0.03]
[1755517834341,106.14031146,181.36,181.35,0.03]
[1755517835436,101.0333343,181.36,181.35,0.03]
[1755517835615,61.9533343,181.36,181.35,0.03]
[1755517835820,101.0333343,181.36,181.35,0.03]
[1755517836251,101.6933343,181.36,181.35,0.03]
[1755517837452,101.69097708,181.36,181.35,0.03]
[1755517840548,101.68964569,181.36,181.35,0.03]
[1755517843152,15.10621557,181.35,181.33,0.03]
[1755517843346,69.51575068,181.34,181.33,0.03]
[1755517844451,75.03025382,181.34,181.33,0.03]
[1755517845534,67.53384224,181.34,181.33,0.03]
[1755517845880,75.03025382,181.34,181.33,0.03]
[1755517846579,75.02865741,181.34,181.33,0.03]
[1755517849341,67.53224583,181.34,181.33,0.03]
[1755517849590,70.91256452,181.34,181.33,0.75]
[1755517849740,75.02934863,181.34,181.33,0.75]
[1755517852444,75.03412994,181.34,181.33,0.75]
[1755517853239,75.03412994,181.34,181.33,0.03]
[1755517856267,75.69412994,181.34,181.33,0.03]
[1755517856876,75.03412994,181.34,181.33,0.03]
[1755517858894,75.03933345,181.34,181.33,0.03]
[1755517864196,75.03933345,181.34,181.33,0.75]
[1755517864891,75.03933345,181.34,181.33,0.03]
[1755517866306,72.32710987,181.34,181.33,0.03]
[1755517866600,72.32710987,181.34,181.33,0.75]
[1755517866792,68.20034094,181.34,181.33,0.75]
[1755517867100,72.33109482,181.34,181.33,0.03]
[1755517867677,67.54690682,181.34,181.33,0.03]
[1755517867874,72.33109482,181.34,181.33,0.03]
[1755517868072,72.33109482,181.34,181.33,0.75]
[1755517870497,37.89481494,181.34,181.33,0.03]
[1755517872478,33.11062694,181.34,181.33,0.03]
[1755517873080,33.11284186,181.34,181.33,0.03]
[1755517874678,33.91330974,181.34,181.32,0.03]
[1755517874877,51.53747287,181.33,181.32,0.03]
[1755517875109,51.53747287,181.33,181.32,0.75]
[1755517875580,61.9946186,181.33,181.32,0.75]
[1755517875781,22.9546186,181.33,181.32,0.75]
[1755517875985,18.8216498,181.33,181.32,0.75]
[1755517876213,22.95681762,181.33,181.32,0.75]
[1755517878288,33.12175401,181.33,181.32,0.03]
[1755517879221,33.12392835,181.33,181.32,0.03]
[1755517879434,33.59392835,181.33,181.32,0.03]
[1755517879790,33.12392835,181.33,181.32,0.03]
[1755517881097,33.12392835,181.33,181.32,0.75]
[1755517883696,33.12392835,181.33,181.32,0.03]
[1755517884525,38.61811635,181.33,181.32,0.03]
[1755517884699,33.96904651,181.33,181.32,0.03]
[1755517885527,33.96948401,181.33,181.32,0.03]
[1755517885706,38.6254539,181.33,181.32,0.03]
[1755517887311,37.9154539,181.33,181.32,0.03]
[1755517888396,76.9554539,181.33,181.32,0.03]
[1755517889029,76.9639796,181.33,181.32,0.03]
[1755517894048,76.9639796,181.33,181.32,0.74080784]
[1755517894431,72.02426303,181.33,181.31,0.03]
[1755517894750,7.86287984,181.32,181.31,0.03]
[1755517895130,7.86287984,181.32,181.31,0.75]
[1755517896626,7.86287984,181.32,181.31,1.46080784]
[1755517897657,7.86260656,181.32,181.31,1.46080784]
[1755517899627,13.37771796,181.32,181.31,1.46080784]
[1755517900526,7.86260656,181.32,181.31,1.46080784]
[1755517903457,3.72441325,181.32,181.31,1.46080784]
[1755517903668,7.8620978,181.32,181.31,1.46080784]
[1755517905945,13.3772092,181.32,181.31,0.74080784]
[1755517908638,13.3772092,181.32,181.31,1.44080784]
[1755517909681,7.8620978,181.32,181.31,1.44080784]
[1755517912465,3.72441325,181.32,181.31,1.44080784]
[1755517912669,7.86097517,181.32,181.31,1.44080784]
[1755517913172,7.86088712,181.32,181.31,1.44080784]
[1755517914173,7.86088712,181.32,181.31,0.74080784]
[1755517914174,72.67220209,181.32,181.31,0.74080784]
[1755517914380,77.32781988,181.32,181.31,0.74080784]
[1755517915771,37.3516068,181.32,181.3,0.03]
[1755517915954,8.92066187,181.31,181.3,0.03]
[1755517916162,8.92066187,181.31,181.3,0.73]
[1755517916358,8.92066187,181.31,181.3,0.03]
[1755517917781,14.43607745,181.31,181.3,0.74080784]
[1755517918663,14.43565614,181.31,181.3,0.74080784]
[1755517921181,5.51541558,181.31,181.3,0.74080784]
[1755517921482,9.65143402,181.31,181.3,0.74080784]
[1755517921684,25.44764959,181.31,181.3,0.4564847]
[1755517922061,30.23183759,181.31,181.3,0.4564847]
[1755517922658,34.8854423,181.31,181.3,0.4564847]
[1755517922970,19.89040357,181.29,181.28,0.03]
[1755517923167,58.22223401,181.29,181.28,0.03]
[1755517923480,69.90197826,181.29,181.28,0.03]
[1755517923778,75.4180023,181.29,181.28,0.03]
[1755517924956,70.6338143,181.29,181.28,0.03]
[1755517925157,75.4180023,181.29,181.28,0.03]
[1755517925469,30.23244605,181.29,181.28,0.03]
[1755517925669,69.21244605,181.29,181.28,0.03]
[1755517926361,68.38034605,181.29,181.28,0.03]
[1755517926562,73.0236877,181.29,181.28,0.03]
[1755517927685,76.73742618,181.29,181.28,0.03]
[1755517928385,72.09408453,181.29,181.28,0.03]
[1755517928585,76.73498415,181.29,181.28,0.03]
[1755517929788,76.72318459,181.29,181.28,0.03]
[1755517930570,73.28896571,181.29,181.28,0.03]
[1755517930768,77.41241513,181.29,181.28,0.03]
[1755517931085,76.72241513,181.29,181.28,0.03]
[1755517932384,72.77151551,181.29,181.28,0.03]
[1755517932987,74.98323251,181.29,181.28,0.03]
[1755517933169,74.979443,181.29,181.28,0.03]
[1755517933877,79.61687922,181.29,181.28,0.03]
[1755517935989,74.979443,181.29,181.27,0.03]
[1755517936190,43.25367644,181.28,181.27,0.03]
[1755517936391,43.92367644,181.28,181.27,0.03]
[1755517936678,51.65196577,181.28,181.27,0.03]
[1755517936986,25.65196577,181.28,181.27,0.03]
[1755517937313,40.75818134,181.28,181.27,0.03]
[1755517937475,15.10621557,181.27,181.26,1e-08]
[1755517937674,66.70380196,181.27,181.25,0.03]
[1755517937894,15.10621557,181.25,181.24,0.03]
[1755517938199,26.0,181.23,181.2,0.03]
[1755517938381,97.3361771,181.23,181.2,0.03]
[1755517938587,98.0061771,181.23,181.2,0.03]
[1755517938768,103.52402734,181.23,181.2,0.03]
[1755517938972,103.51797013,181.23,181.2,0.03]
[1755517939173,105.73091113,181.23,181.2,0.03]
[1755517939374,105.72835013,181.23,181.2,0.03]
[1755517940177,100.94416213,181.23,181.2,0.03]
[1755517940408,105.72835013,181.23,181.2,0.03]
[1755517940611,101.09597499,181.23,181.2,0.03]
[1755517943078,96.29303353,181.18,181.17,0.69]
[1755517943798,90.77366054,181.18,181.17,0.69]
[1755517944313,96.29303353,181.18,181.17,0.69]
[1755517944811,96.29303353,181.18,181.17,0.03]
[1755517944996,91.44366054,181.18,181.17,0.03]
[1755517945202,96.96303353,181.18,181.17,0.03]
[1755517945914,96.29303353,181.18,181.17,0.03]
[1755517947016,92.58308456,181.18,181.17,0.03]
[1755517947989,97.68995998,181.18,181.17,0.03]
[1755517948302,2.213308,181.18,181.17,5.61634957]
[1755517948499,36.0077548,181.27,181.18,0.14216157]
[1755517948500,15.10621557,181.22,181.18,0.14216157]
[1755517948842,5.61635,181.24,181.19,0.14216157]
[1755517948987,39.6,181.25,181.22,0.14216157]
[1755517949334,39.6,181.26,181.22,5.06851114]
[1755517950129,15.10621557,181.25,181.22,5.06851114]
[1755517950327,15.10621557,181.25,181.22,5.80238038]
[1755517950518,15.10621557,181.25,181.19,0.28432314]
[1755517950821,15.10621557,181.25,181.23,0.28432314]
[1755517951018,16.651543,181.29,181.23,7.76417687]
[1755517951019,15.10621557,181.27,181.23,7.76417687]
[1755517952529,0.67,181.26,181.23,0.14216157]
[1755517952709,26.2798762,181.27,181.23,0.14216157]
[1755517952710,22.5860693,181.27,181.23,0.14216157]
[1755517953109,15.10621557,181.27,181.23,0.14216157]
[1755517953311,18.80038163,181.27,181.23,0.14216157]
[1755517953713,19.47038163,181.27,181.23,0.14216157]
[1755517953911,3.69416606,181.26,181.23,0.14216157]
[1755517954800,4.36416606,181.26,181.23,0.14216157]
[1755517955208,15.77621557,181.25,181.21,7.6220153]
[1755517955413,15.77621557,181.25,181.22,0.14216157]
[1755517955926,15.10621557,181.27,181.24,0.14216157]
[1755517956115,18.80258267,181.27,181.24,0.14216157]
[1755517956431,26.9524364,181.27,181.23,0.28432314]
[1755517956602,3.6963671,181.26,181.23,0.28432314]
[1755517956808,3.6963671,181.26,181.22,0.28432314]
[1755517957028,3.6963671,181.26,181.22,7.76417687]
[1755517958336,4.3663671,181.26,181.22,7.76417687]
[1755517958512,3.6963671,181.26,181.22,7.76417687]
[1755517959117,0.67,181.25,181.21,7.47985373]
[1755517959419,0.67,181.25,181.22,0.28432314]
[1755517959420,0.67,181.24,181.22,0.28432314]
[1755517959823,3.6963671,181.25,181.22,0.28432314]
[1755517960031,4.3663671,181.25,181.22,0.28432314]
[1755517960437,19.47258267,181.25,181.22,0.28432314]
[1755517960636,15.77621557,181.25,181.22,0.28432314]
[1755517960936,0.67,181.24,181.22,0.28432314]
[1755517961139,4.37195386,181.24,181.21,0.28432314]
[1755517961340,4.37195386,181.24,181.21,7.76417687]
[1755517962040,4.37195386,181.24,181.21,0.28432314]
[1755517963140,4.37195386,181.24,181.21,7.76417687]
[1755517964320,0.67,181.23,181.21,7.76417687]
[1755517964631,4.37195386,181.23,181.21,7.76417687]
[1755517964814,0.67,181.23,181.21,7.76417687]
[1755517965015,4.37195386,181.23,181.22,0.14216157]
[1755517965215,3.70195386,181.24,181.22,0.14216157]
[1755517965416,15.77621557,181.25,181.22,0.14216157]
[1755517965417,3.70195386,181.23,181.22,0.14216157]
[1755517965720,3.70195386,181.24,181.22,0.14216157]
[1755517965921,3.70195386,181.23,181.22,0.14216157]
[1755517966139,3.70195386,181.24,181.22,0.14216157]
[1755517966366,3.70195386,181.23,181.22,0.14216157]
[1755517966534,3.70195386,181.24,181.22,0.14216157]
[1755517966858,3.70195386,181.23,181.22,0.14216157]
[1755517967063,3.70195386,181.24,181.22,0.14216157]
[1755517967236,3.70195386,181.24,181.21,7.6220153]
[1755517967440,3.70777441,181.23,181.21,7.6220153]
[1755517967755,3.70777441,181.24,181.23,0.28432314]
[1755517967959,3.70777441,181.24,181.23,7.76417687]
[1755517968837,3.70777441,181.24,181.22,7.76417687]
[1755517969044,0.68,181.26,181.22,13.28212397]
[1755517969235,3.70773669,181.25,181.24,0.14216157]
[1755517969439,3.70773669,181.25,181.23,7.47985373]
[1755517969663,3.70773669,181.24,181.23,7.47985373]
[1755517970439,3.70773669,181.24,181.2,5.51876379]
[1755517970638,0.68,181.26,181.22,7.47985373]
[1755517970864,3.707741,181.25,181.22,7.47985373]
[1755517971164,4.387741,181.24,181.22,7.47985373]
[1755517971360,3.707741,181.23,181.2,5.51876379]
[1755517971566,3.70777429,181.23,181.22,7.47985373]
[1755517972365,4.38777429,181.23,181.19,85.81905924]
[1755517972544,0.68,181.23,181.2,7.47985373]
[1755517972740,0.68,181.22,181.2,7.47985373]
[1755517973352,4.3883396,181.22,181.2,7.47985373]
[1755517973669,3.7083396,181.25,181.2,7.47985373]
[1755517973968,0.68,181.22,181.2,7.47985373]
[1755517975268,4.38847666,181.22,181.18,44.90929408]
[1755517975448,0.68,181.22,181.2,7.47985373]
[1755517976363,0.06,181.24,181.18,0.03]
[1755517976364,0.68,181.21,181.18,0.03]
[1755517977873,15.10621557,181.22,181.18,0.03]
[1755517978063,0.68,181.2,181.18,0.03]
[1755517978368,0.68,181.2,181.18,7.50985373]
[1755517979272,28.16362901,181.24,181.18,7.50985373]
[1755517979273,0.68,181.22,181.18,7.50985373]
[1755517979572,0.68,181.22,181.19,7.47985373]
[1755517979940,15.10621557,181.23,181.19,7.47985373]
[1755517980175,15.78621557,181.23,181.2,7.47985373]
[1755517980475,0.06,181.24,181.22,7.47985373]
[1755517980770,0.68,181.23,181.22,7.47985373]
[1755517981145,0.06,181.24,181.22,7.47985373]
[1755517981343,0.06,181.24,181.23,7.47985373]
[1755517982075,0.06,181.24,181.22,7.47985373]
[1755517982246,0.06,181.24,181.23,7.47985373]
[1755517983351,0.74,181.24,181.22,7.47985373]
[1755517983574,0.74,181.24,181.21,46.77985373]
[1755517985277,0.74,181.24,181.21,39.3]
[1755517985475,0.74,181.24,181.21,46.77985373]
[1755517985780,0.68,181.23,181.21,39.3]
[1755517985962,0.68,181.22,181.21,46.77985373]
[1755517986162,0.74,181.24,181.21,46.77985373]
[1755517986568,0.06,181.24,181.22,7.47985373]
[1755517986763,0.06,181.24,181.23,7.47985373]
[1755517986963,0.06,181.24,181.21,44.81841749]
[1755517986964,0.06,181.24,181.22,7.47985373]
[1755517987370,0.06,181.24,181.21,44.81841749]
[1755517987578,0.68,181.23,181.21,7.47985373]
[1755517987887,0.68,181.23,181.21,46.73985373]
[1755517989382,0.68,181.23,181.21,39.26]
[1755517989578,0.06,181.24,181.21,52.25829281]
[1755517989976,0.74,181.24,181.21,52.25829281]
[1755517991559,0.06,181.23,181.21,52.25829281]
[1755517991961,0.06,181.23,181.22,7.47985373]
[1755517992485,0.74,181.23,181.22,7.47985373]
[1755517993192,0.74,181.23,181.21,46.73985373]
[1755517993562,0.68,181.22,181.19,7.47985373]
[1755517993890,15.10621557,181.21,181.18,0.03]
[1755517994085,15.78621557,181.21,181.19,39.2]
[1755517994273,15.10621557,181.22,181.19,39.2]
[1755517994582,0.68,181.2,181.19,39.2]
[1755517995164,15.78621557,181.22,181.19,39.2]
[1755517995363,4.40218531,181.21,181.19,39.2]
[1755517995586,0.68,181.21,181.19,39.2]
[1755517995793,0.68,181.2,181.19,39.2]
[1755517996795,0.68,181.2,181.19,46.67985373]
[1755517996992,3.72221385,181.21,181.19,46.67985373]
[1755517997169,0.68,181.21,181.19,46.67985373]
[1755517997997,0.06,181.23,181.19,52.19885563]
[1755517998291,7.85792476,181.22,181.21,7.47985373]
[1755517998590,7.85792476,181.22,181.21,46.63985373]
[1755517998893,0.06,181.23,181.21,46.63985373]
[1755517999074,0.06,181.23,181.22,7.47985373]
[1755518000466,0.06,181.23,181.22,12.99800845]
[1755518002074,0.06,181.23,181.22,52.11800845]
[1755518002571,0.06,181.23,181.22,46.59985373]
[1755518003074,0.06,181.23,181.22,46.57985373]
[1755518004310,8.59358562,181.23,181.19,7.47985373]
[1755518004490,8.5337854,181.22,181.2,39.1]
[1755518004802,0.68,181.21,181.18,7.50985373]
[1755518005010,3.72065992,181.2,181.19,39.18]
[1755518005212,4.40065992,181.2,181.19,39.18]
[1755518007510,4.40065992,181.2,181.18,0.03]
[1755518007690,5.51849093,181.21,181.19,39.16]
[1755518007881,3.71960294,181.2,181.19,39.16]
[1755518008081,20.85124547,181.2,181.18,39.17]
[1755518008386,19.50581851,181.19,181.18,39.17]
[1755518009193,3.71960294,181.19,181.18,46.64985373]
[1755518010085,3.71960294,181.19,181.18,52.16922672]
[1755518010526,0.06,181.2,181.18,52.16922672]
[1755518010824,0.06,181.2,181.19,7.47985373]
[1755518012122,3.77845582,181.2,181.19,46.61985373]
[1755518012423,3.77845582,181.2,181.19,39.14]
[1755518013005,4.45845582,181.2,181.18,0.03]
[1755518013198,4.39840024,181.19,181.18,0.03]
[1755518013393,4.39840024,181.19,181.18,39.17]
[1755518016211,3.71840024,181.19,181.18,44.68937299]
[1755518017403,3.71840024,181.19,181.18,39.17]
[1755518017616,4.39840024,181.19,181.18,39.17]
[1755518019319,4.39840024,181.19,181.18,0.03]
[1755518019526,4.39840024,181.19,181.18,39.15]
[1755518019719,4.39840024,181.19,181.18,0.03]
[1755518019917,3.71840024,181.19,181.18,39.13]
[1755518020718,4.39840024,181.19,181.18,39.13]
[1755518022028,4.39840024,181.19,181.18,0.03]
[1755518022342,3.71840024,181.19,181.18,39.13]
[1755518023022,4.39840024,181.19,181.18,39.13]
[1755518024311,3.71840024,181.19,181.18,39.13]
[1755518025612,4.39840024,181.19,181.18,39.13]
[1755518025923,3.71840024,181.19,181.18,39.13]
[1755518026302,4.42840024,181.19,181.18,39.13]
[1755518027024,16.03826996,181.19,181.18,0.03]
[1755518027214,15.10621557,181.18,181.17,0.03]
[1755518027525,15.10621557,181.18,181.16,0.03]
[1755518027526,30.42752876,181.18,181.16,0.03]
[1755518027711,11.90825397,181.17,181.16,0.03]
[1755518029411,27.01446954,181.17,181.16,0.03]
[1755518029908,19.53461581,181.17,181.16,0.03]
[1755518030234,27.01446954,181.17,181.16,0.03]
[1755518032330,3.71840024,181.17,181.16,0.03]
[1755518032632,7.53985373,181.2,181.16,0.03]
[1755518032807,4.42357449,181.19,181.16,0.03]
[1755518033123,3.71357449,181.18,181.16,0.03]
[1755518033331,7.53985373,181.2,181.16,0.03]
[1755518033509,0.71,181.18,181.16,0.03]
[1755518034326,3.71384906,181.17,181.16,0.03]
[1755518034534,0.71,181.18,181.16,0.03]
[1755518034720,8.24985373,181.2,181.16,0.03]
[1755518035035,3.71377919,181.19,181.16,0.03]
[1755518035212,3.71377919,181.18,181.16,0.03]
[1755518035410,0.71,181.18,181.16,0.03]
[1755518037222,8.24985373,181.2,181.16,0.03]
[1755518037430,3.71406046,181.19,181.16,0.03]
[1755518037632,3.71406046,181.18,181.16,0.03]
[1755518037822,0.71,181.19,181.16,0.03]
[1755518038021,3.71405974,181.18,181.16,0.03]
[1755518038223,0.71,181.19,181.16,0.03]
[1755518038425,3.71427107,181.18,181.16,0.03]
[1755518038624,0.71,181.19,181.16,0.03]
[1755518038820,3.71427107,181.18,181.17,39.04]
[1755518039032,4.42427107,181.18,181.17,39.04]
[1755518040311,3.71427107,181.18,181.17,39.04]
[1755518041325,3.71427107,181.18,181.16,13.02979601]
[1755518041326,4.42427107,181.18,181.16,0.03]
[1755518041637,4.42427107,181.17,181.16,0.03]
[1755518042225,11.9041248,181.17,181.16,0.03]
[1755518042435,4.42427107,181.17,181.16,0.03]
[1755518042643,11.9041248,181.17,181.16,0.03]
[1755518043929,4.42427107,181.17,181.16,0.03]
[1755518044329,4.4245022,181.17,181.16,0.03]
[1755518046731,8.55247308,181.17,181.16,0.03]
[1755518048037,4.4245022,181.17,181.16,0.03]
[1755518049131,8.55509042,181.17,181.16,0.03]
[1755518052556,8.55522502,181.17,181.16,0.03]
[1755518055543,8.55502601,181.17,181.16,0.03]
[1755518056552,8.55577441,181.17,181.16,0.03]
[1755518058743,16.03562814,181.17,181.16,0.03]
[1755518060644,8.55577441,181.17,181.16,0.03]
[1755518061048,7.84577441,181.17,181.16,0.03]
[1755518061353,3.7145022,181.17,181.16,0.03]
[1755518061561,3.7145022,181.17,181.16,7.57985373]
[1755518062064,0.06,181.19,181.18,26.0]
[1755518062365,0.06,181.19,181.18,72.51985373]
[1755518062740,0.06,181.19,181.18,72.58985373]
[1755518062962,0.06,181.19,181.18,78.10922672]
[1755518064782,0.06,181.2,181.19,7.47985373]
[1755518065281,0.06,181.2,181.19,7.54985373]